bitfinex-derivatives/quotes_SOLF0:USTF0_20240911
["timestamp","ask_amount","ask_price","bid_price","bid_amount"]
[1726015471235,12.77208711,135.8,135.73,9.05]
[1726015474043,9.05,135.78,135.73,9.05]
[1726015479243,9.05,135.78,135.71,7.30134164]
[1726015479439,9.05,135.78,135.73,9.05]
[1726015481144,9.05,135.77,135.71,9.05]
[1726015482443,9.05,135.76,135.69,11.7215]
[1726015483146,12.66364976,135.76,135.69,11.7215]
[1726015483647,12.66364976,135.76,135.7,9.05]
[1726015488347,9.05,135.71,135.57,11.08205305]
[1726015488548,9.05,135.71,135.64,9.05]
[1726015488748,9.05,135.71,135.65,3.63381735]
[1726015490855,9.05,135.71,135.64,9.05]
[1726015491350,9.05,135.71,135.64,12.66967261]
[1726015498551,9.05,135.7,135.64,3.61967261]
[1726015498764,9.05,135.7,135.63,11.7058]
[1726015499057,9.05,135.68,135.63,2.6558]
[1726015499863,9.05,135.68,135.63,6.316767]
[1726015501753,3.70936832,135.73,135.63,6.316767]
[1726015501754,9.05,135.71,135.64,9.05]
[1726015501970,9.05,135.69,135.64,9.05]
[1726015510480,3.70936832,135.73,135.61,3.6867]
[1726015510481,9.05,135.67,135.61,3.6867]
[1726015510681,9.05,135.67,135.61,12.7367]
[1726015511089,9.05,135.67,135.61,16.33240859]
[1726015511786,9.05,135.67,135.61,12.7367]
[1726015511987,9.05,135.67,135.61,16.3792306]
[1726015512885,9.05,135.66,135.6,12.71039823]
[1726015513093,9.05,135.69,135.63,9.05]
[1726015513485,9.05,135.7,135.64,9.05]
[1726015514386,12.74616519,135.7,135.64,9.05]
[1726015516588,9.05,135.7,135.64,9.05]
[1726015516787,12.74358407,135.7,135.64,9.05]
[1726015517388,9.05,135.69,135.63,9.05]
[1726015518294,12.80258112,135.69,135.63,9.05]
[1726015518495,9.05,135.69,135.63,9.05]
[1726015518994,9.05,135.69,135.63,12.7362]
[1726015519394,12.80598451,135.69,135.63,12.7362]
[1726015519789,9.05,135.69,135.63,12.7362]
[1726015526697,9.05,135.66,135.59,6.37033687]
[1726015526894,9.05,135.66,135.6,9.05]
[1726015527086,9.05,135.66,135.6,12.737]
[1726015528600,3.6933117,135.68,135.59,6.37033687]
[1726015528601,9.05,135.67,135.61,12.7366]
[1726015531697,9.05,135.67,135.62,9.05]
[1726015533097,9.05,135.67,135.62,12.7365]
[1726015533300,12.75528619,135.69,135.62,12.7365]
[1726015533498,12.75528619,135.69,135.62,9.05]
[1726015535103,10.4472,135.7,135.64,9.05]
[1726015536604,9.05,135.69,135.62,12.7364]
[1726015536807,9.05,135.69,135.62,9.05]
[1726015537107,9.05,135.69,135.64,9.05]
[1726015537301,10.4472,135.7,135.64,9.05]
[1726015539098,9.05,135.7,135.64,9.05]
[1726015539302,9.05,135.7,135.64,12.7358]
[1726015541695,9.05,135.7,135.64,3.6858]
[1726015541904,1.3075,135.73,135.66,9.05]
[1726015541905,10.3575,135.73,135.66,9.05]
[1726015542101,9.05,135.73,135.66,12.70091069]
[1726015542505,9.05,135.71,135.66,3.65091069]
[1726015542807,9.05,135.71,135.65,9.05]
[1726015543197,1.342,135.74,135.59,6.37033687]
[1726015543510,9.05,135.7,135.63,9.05]
[1726015543714,9.05,135.7,135.63,12.7362]
[1726015544710,9.05,135.7,135.64,3.686]
[1726015544911,9.05,135.7,135.64,5.0833]
[1726015545408,9.05,135.7,135.65,9.05]
[1726015545805,9.05,135.71,135.65,9.05]
[1726015548918,9.05,135.68,135.64,1.3973]
[1726015549218,1.342,135.74,135.64,1.3973]
[1726015549420,9.05,135.69,135.64,1.3973]
[1726015550417,9.05,135.69,135.64,10.4473]
[1726015551617,9.05,135.71,135.64,10.4473]
[1726015551820,9.05,135.71,135.64,14.1332]
[1726015552413,9.05,135.71,135.64,10.4473]
[1726015555216,9.05,135.71,135.64,14.1333]
[1726015555525,9.05,135.71,135.65,9.05]
[1726015556023,9.05,135.71,135.65,12.7357]
[1726015556725,9.05,135.73,135.66,15.18125675]
[1726015556923,9.05,135.73,135.67,9.73856559]
[1726015557124,9.05,135.73,135.67,3.60730884]
[1726015557933,9.05,135.73,135.68,9.05]
[1726015558337,9.05,135.75,135.69,9.05]
[1726015560247,9.05,135.74,135.65,1.4111]
[1726015560434,9.05,135.71,135.66,6.13060562]
[1726015560635,9.05,135.71,135.66,3.75589096]
[1726015560834,9.05,135.71,135.66,7.44129096]
[1726015561038,9.05,135.72,135.66,16.49129096]
[1726015561343,9.05,135.74,135.68,12.7349]
[1726015562340,9.05,135.74,135.68,9.05]
[1726015564044,3.74363503,135.75,135.66,12.80589096]
[1726015564045,9.05,135.72,135.66,12.80589096]
[1726015565745,9.05,135.74,135.68,9.05]
[1726015569446,9.05,135.74,135.68,12.7349]
[1726015569641,9.05,135.74,135.69,9.05]
[1726015569842,9.05,135.75,135.69,12.7346]
[1726015570844,9.05,135.77,135.7,9.05]
[1726015572252,9.05,135.77,135.67,3.67701268]
[1726015572253,9.05,135.74,135.68,9.05]
[1726015572953,1.4007,135.81,135.71,9.05]
[1726015573151,1.4007,135.81,135.72,1.3404]
[1726015573347,1.4007,135.81,135.74,9.05]
[1726015573348,9.05,135.8,135.74,9.05]
[1726015580662,1.4007,135.81,135.75,9.05]
[1726015582863,1.4007,135.81,135.72,5.0241]
[1726015583061,10.4314,135.8,135.69,1.3092]
[1726015583356,10.4314,135.8,135.73,9.05]
[1726015583357,11.7064,135.8,135.73,9.05]
[1726015584555,11.7064,135.8,135.74,9.05]
[1726015586761,2.6564,135.8,135.74,9.05]
[1726015589461,2.6564,135.8,135.76,9.05]
[1726015589666,10.4507,135.81,135.78,9.05]
[1726015589667,1.4007,135.81,135.78,9.05]
[1726015590155,3.60619469,135.83,135.78,9.05]
[1726015590560,1.2807,135.84,135.78,9.05]
[1726015590758,3.71647181,135.83,135.78,9.05]
[1726015591155,1.2807,135.84,135.78,9.05]
[1726015591759,3.64390318,135.83,135.78,9.05]
[1726015594258,9.05,135.83,135.76,9.05]
[1726015594464,12.8052422,135.83,135.75,9.05]
[1726015594764,14.2143422,135.83,135.75,9.05]
[1726015595962,5.1643422,135.83,135.75,9.05]
[1726015596162,9.05,135.82,135.75,12.733]
[1726015597565,9.05,135.82,135.7,1.3718]
[1726015597771,9.05,135.81,135.7,1.3718]
[1726015598072,5.1643422,135.83,135.7,1.3718]
[1726015598073,9.05,135.8,135.73,9.05]
[1726015602064,9.05,135.8,135.72,3.6837]
[1726015602270,9.05,135.8,135.72,9.05]
[1726015604166,9.05,135.8,135.74,9.05]
[1726015606970,6.4852422,135.83,135.7,1.3718]
[1726015606971,9.05,135.78,135.7,1.3718]
[1726015607166,9.05,135.78,135.72,9.05]
[1726015607369,9.05,135.8,135.72,9.05]
[1726015607967,9.05,135.8,135.74,9.05]
[1726015608369,6.4852422,135.83,135.74,9.05]
[1726015608577,9.05,135.82,135.75,9.05]
[1726015612277,9.05,135.82,135.72,3.6837]
[1726015612278,9.05,135.82,135.74,9.05]
[1726015613282,9.05,135.81,135.75,9.05]
[1726015620375,3.7552422,135.83,135.75,9.05]
[1726015620574,7.69348394,135.87,135.75,9.05]
[1726015620575,9.05,135.82,135.75,9.05]
[1726015622175,16.21443756,135.86,135.76,9.05]
[1726015622486,9.05,135.83,135.76,9.05]
[1726015622780,16.21443756,135.85,135.76,9.05]
[1726015622983,3.67364335,135.87,135.78,9.05]
[1726015623181,410.0,135.9,135.78,9.05]
[1726015623182,9.05,135.85,135.78,9.05]
[1726015623384,12.72420614,135.85,135.78,9.05]
[1726015623880,16.21443756,135.85,135.79,9.05]
[1726015624072,16.21443756,135.85,135.76,3.68673101]
[1726015624073,3.77108966,135.86,135.81,9.05]
[1726015624286,9.05,135.87,135.81,9.05]
[1726015624886,7.69155679,135.92,135.81,9.05]
[1726015625078,258.7386851,135.95,135.81,9.05]
[1726015625079,25.26443756,135.88,135.81,9.05]
[1726015625283,12.72346938,135.88,135.81,9.05]
[1726015625787,27.3626851,135.96,135.77,3.76740587]
[1726015625788,16.21443756,135.9,135.83,9.05]
[1726015626096,9.05,135.89,135.83,9.05]
[1726015628686,9.05,135.89,135.77,3.76740587]
[1726015628687,16.21443756,135.95,135.84,9.05]
[1726015628884,9.05,135.9,135.84,9.05]
[1726015629086,12.65631139,135.9,135.84,9.05]
[1726015630286,9.05,135.9,135.84,9.05]
[1726015630683,12.73151693,135.9,135.84,9.05]
[1726015630988,12.73151693,135.9,135.81,3.6813]
[1726015630989,16.20599069,135.95,135.77,3.76740587]
[1726015631181,16.20599069,135.95,135.82,9.05]
[1726015631182,9.05,135.88,135.82,9.05]
[1726015633894,9.05,135.86,135.8,9.05]
[1726015635188,9.05,135.86,135.79,3.67552838]
[1726015635189,9.05,135.85,135.79,12.72552838]
[1726015638787,9.05,135.85,135.79,16.40732838]
[1726015639193,9.05,135.85,135.79,12.72552838]
[1726015640686,16.20972822,135.91,135.79,12.72552838]
[1726015640881,9.05,135.87,135.8,9.05]
[1726015641488,3.68252441,135.89,135.8,9.05]
[1726015641795,15.06458293,135.96,135.8,9.05]
[1726015641796,9.05,135.87,135.8,9.05]
[1726015642586,9.05,135.87,135.8,12.7315]
[1726015644295,9.05,135.86,135.8,9.05]
[1726015644885,9.05,135.85,135.79,12.72552838]
[1726015646685,9.05,135.85,135.79,16.40742838]
[1726015648895,9.05,135.86,135.8,9.05]
[1726015649097,9.05,135.86,135.8,12.7316]
[1726015649499,9.05,135.86,135.8,9.05]
[1726015650598,9.05,135.85,135.79,12.72552838]
[1726015651700,9.05,135.85,135.79,7.35742838]
[1726015651910,9.05,135.85,135.79,3.67552838]
[1726015652997,9.05,135.85,135.79,12.72552838]
[1726015653198,9.05,135.86,135.79,12.72552838]
[1726015654005,9.05,135.86,135.8,3.6816]
[1726015655099,9.05,135.85,135.79,12.72552838]
[1726015658505,9.05,135.85,135.79,16.40742838]
[1726015659197,9.05,135.85,135.8,3.6815]
[1726015659412,9.05,135.86,135.8,12.7315]
[1726015659599,9.05,135.86,135.8,3.6815]
[1726015659803,9.05,135.86,135.8,12.7315]
[1726015660603,9.05,135.86,135.81,3.6812]
[1726015662002,1.3187,135.92,135.82,3.6811]
[1726015662308,9.05,135.88,135.82,3.6811]
[1726015662513,1.3187,135.92,135.82,9.05]
[1726015662705,9.05,135.89,135.82,9.05]
[1726015663509,9.05,135.89,135.83,3.6807]
[1726015664015,9.05,135.87,135.82,3.681]
[1726015664313,9.05,135.87,135.81,10.3352]
[1726015664717,9.05,135.87,135.81,14.0164]
[1726015664913,9.05,135.87,135.81,10.3352]
[1726015665111,9.05,135.86,135.81,10.3352]
[1726015665516,9.05,135.86,135.81,1.2852]
[1726015667709,9.05,135.85,135.81,1.2852]
[1726015667911,9.05,135.83,135.8,1.3105]
[1726015668916,5.07459206,135.9,135.8,1.3105]
[1726015669425,9.05,135.84,135.8,1.3105]
[1726015670212,5.07459206,135.9,135.8,4.9921]
[1726015670416,9.05,135.85,135.8,4.9921]
[1726015670721,5.07459206,135.9,135.8,1.3105]
[1726015670915,9.05,135.85,135.8,1.3105]
[1726015672223,9.05,135.85,135.8,4.992]
[1726015673822,16.20506583,135.94,135.83,9.05]
[1726015674117,9.05,135.91,135.85,9.05]
[1726015674622,9.05,135.91,135.85,12.7301]
[1726015675211,9.05,135.88,135.83,3.6808]
[1726015675911,9.05,135.88,135.81,9.05]
[1726015675912,9.05,135.88,135.84,3.6805]
[1726015676820,9.05,135.88,135.8,1.3105]
[1726015677017,9.05,135.88,135.83,9.05]
[1726015677617,1.3397,135.9,135.83,9.05]
[1726015677618,9.05,135.89,135.83,9.05]
[1726015677819,1.3397,135.9,135.84,9.05]
[1726015678923,1.3397,135.9,135.85,9.05]
[1726015679119,9.05,135.91,135.85,9.05]
[1726015679919,9.05,135.91,135.85,12.7303]
[1726015680125,9.05,135.91,135.85,9.05]
[1726015682130,9.05,135.91,135.83,3.6807]
[1726015682326,9.05,135.88,135.82,9.05]
[1726015682532,9.05,135.9,135.82,9.05]
[1726015682927,9.05,135.9,135.82,12.7309]
[1726015683329,1.3889,135.94,135.81,1.4072]
[1726015683330,1.3889,135.94,135.84,9.05]
[1726015683524,1.3889,135.94,135.85,9.05]
[1726015683525,9.05,135.92,135.85,9.05]
[1726015684332,9.05,135.92,135.85,12.7303]
[1726015684732,9.05,135.92,135.85,9.05]
[1726015684927,1.3133,135.95,135.87,9.05]
[1726015685127,9.05,135.95,135.88,9.05]
[1726015685332,19.8707036,135.97,135.82,6.11587778]
[1726015685333,9.05,135.93,135.87,9.05]
[1726015687341,10.36,135.94,135.87,9.05]
[1726015687842,10.36,135.94,135.88,9.05]
[1726015688532,10.36,135.94,135.88,12.7294]
[1726015689741,1.31,135.94,135.88,12.7294]
[1726015691241,1.31,135.94,135.88,9.05]
[1726015692141,1.31,135.94,135.88,12.7294]
[1726015692540,11.6879,135.96,135.89,9.05]
[1726015693247,11.6879,135.96,135.89,12.729]
[1726015694537,11.6879,135.96,135.89,9.05]
[1726015697047,9.05,135.94,135.88,9.05]
[1726015697945,9.05,135.94,135.87,1.3137]
[1726015698145,2.6379,135.96,135.87,1.3137]
[1726015698146,9.05,135.93,135.87,1.3137]
[1726015704047,9.05,135.93,135.87,14.0434]
[1726015704249,1.2784,135.95,135.87,10.3637]
[1726015704449,9.05,135.94,135.87,10.3637]
[1726015704851,9.05,135.94,135.88,3.6795]
[1726015706066,9.05,135.94,135.88,12.7295]
[1726015707455,9.05,135.95,135.89,3.6791]
[1726015710958,9.05,135.95,135.89,3.60054161]
[1726015712250,9.05,135.95,135.9,3.6789]
[1726015712454,3.6756697,135.99,135.9,3.6789]
[1726015712651,9.05,135.96,135.91,12.7285]
[1726015713254,9.05,135.96,135.91,9.05]
[1726015714054,9.05,135.96,135.91,12.7285]
[1726015714358,9.05,135.96,135.87,1.3137]
[1726015714359,9.05,135.94,135.87,10.3637]
[1726015714552,9.05,135.94,135.87,14.0433]
[1726015716463,7.75068226,136.0,135.89,9.05]
[1726015716662,7.75068226,136.0,135.87,1.3137]
[1726015716663,9.05,135.97,135.91,9.05]
[1726015724156,9.05,135.97,135.91,12.7284]
[1726015724359,9.05,135.98,135.92,9.05]
[1726015725059,9.05,135.98,135.92,12.7283]
[1726015727060,9.05,135.98,135.92,16.45097971]
[1726015727867,9.05,135.98,135.93,3.6781]
[1726015728265,9.05,135.98,135.92,12.77267971]
[1726015728863,9.05,135.98,135.92,16.45087971]
[1726015731067,6.33837052,136.0,135.92,12.77267971]
[1726015731374,9.05,135.99,135.92,12.77267971]
[1726015732164,9.05,135.99,135.93,3.678]
[1726015732567,9.05,135.99,135.92,3.72267971]
[1726015732761,9.05,135.99,135.92,12.7284]
[1726015732968,9.05,135.99,135.92,16.47600853]
[1726015734573,9.05,135.98,135.91,12.7286]
[1726015735165,9.05,135.98,135.91,3.6786]
[1726015735461,9.05,135.96,135.91,3.6786]
[1726015740769,9.05,135.96,135.89,9.05]
[1726015740969,9.05,135.95,135.89,9.05]
[1726015741878,9.05,135.95,135.89,12.7291]
[1726015746080,9.05,135.94,135.87,1.3137]
[1726015746277,9.05,135.92,135.87,10.3637]
[1726015746781,9.05,135.92,135.87,14.0433]
[1726015747374,6.33837052,136.0,135.88,12.7295]
[1726015747675,9.05,135.95,135.88,9.05]
[1726015748475,9.05,135.95,135.88,12.7294]
[1726015749471,9.05,135.93,135.88,9.05]
[1726015749672,9.05,135.93,135.87,14.0434]
[1726015749878,9.05,135.92,135.87,1.3137]
[1726015751277,6.33837052,136.0,135.88,9.05]
[1726015751480,9.05,135.96,135.9,9.05]
[1726015753087,1.3155,135.98,135.9,9.05]
[1726015753293,9.05,135.95,135.9,9.05]
[1726015755997,1.3155,135.98,135.9,9.05]
[1726015756400,9.05,135.96,135.9,9.05]
[1726015756703,9.05,135.96,135.88,12.7293]
[1726015758605,9.05,135.94,135.88,12.7293]
[1726015761707,9.05,135.94,135.88,9.05]
[1726015761904,9.05,135.93,135.87,14.0434]
[1726015762103,9.05,135.93,135.88,6.09462632]
[1726015762298,9.05,135.93,135.87,14.0434]
[1726015762505,9.05,135.93,135.88,6.09454149]
[1726015762705,9.05,135.93,135.87,14.0434]
[1726015763007,9.05,135.93,135.88,6.09440398]
[1726015763202,9.05,135.93,135.87,14.0434]
[1726015763398,9.05,135.93,135.88,6.09448305]
[1726015763602,9.05,135.93,135.87,14.0434]
[1726015763804,9.05,135.93,135.88,6.09448305]
[1726015763997,9.05,135.93,135.87,14.0434]
[1726015764311,9.05,135.93,135.88,6.09448305]
[1726015764504,9.05,135.93,135.87,14.0434]
[1726015764700,9.05,135.93,135.88,6.09468298]
[1726015764905,9.05,135.93,135.87,14.0434]
[1726015765106,9.05,135.93,135.88,6.09468298]
[1726015765302,9.05,135.93,135.87,14.0434]
[1726015765515,9.05,135.93,135.88,6.0946039]
[1726015765813,9.05,135.93,135.87,14.0434]
[1726015766012,9.05,135.93,135.88,6.09440398]
[1726015766215,9.05,135.93,135.87,14.0434]
[1726015767313,9.05,135.93,135.88,6.09485262]
[1726015767514,9.05,135.93,135.87,14.0434]
[1726015768313,9.05,135.93,135.88,6.09413306]
[1726015768506,9.05,135.93,135.87,14.0434]
[1726015768712,9.05,135.93,135.88,6.09439947]
[1726015769014,1.3155,135.98,135.9,9.05]
[1726015769209,9.05,135.95,135.9,9.05]
[1726015769610,9.05,135.94,135.88,9.05]
[1726015769814,9.05,135.94,135.88,12.7293]
[1726015770519,9.05,135.94,135.89,6.09439547]
[1726015770710,9.05,135.94,135.88,12.7293]
[1726015771014,9.05,135.94,135.89,6.09442017]
[1726015771312,9.05,135.94,135.88,12.7293]
[1726015771515,9.05,135.94,135.89,6.09414559]
[1726015771713,9.05,135.94,135.88,12.7293]
[1726015772015,9.05,135.94,135.89,6.0933955]
[1726015772209,9.05,135.94,135.88,12.7293]
[1726015772408,9.05,135.94,135.89,6.09404372]
[1726015772605,9.05,135.94,135.88,12.7293]
[1726015772812,9.05,135.94,135.89,6.09367988]
[1726015773013,9.05,135.94,135.88,12.7293]
[1726015773214,9.05,135.94,135.89,6.09326288]
[1726015773415,9.05,135.94,135.88,12.7293]
[1726015773613,9.05,135.94,135.89,6.09326288]
[1726015773915,9.05,135.94,135.88,12.7293]
[1726015774114,9.05,135.94,135.89,6.09321289]
[1726015774311,9.05,135.94,135.87,4.9933]
[1726015774511,9.05,135.94,135.88,6.09363811]
[1726015774713,9.05,135.94,135.87,14.0433]
[1726015774916,1.3155,135.98,135.88,6.09387091]
[1726015775227,1.3155,135.98,135.81,9.05]
[1726015775228,9.05,135.89,135.81,9.05]
[1726015775407,9.05,135.87,135.82,6.09803452]
[1726015775716,9.05,135.87,135.83,6.09803452]
[1726015775915,9.05,135.87,135.84,6.09803452]
[1726015776222,9.05,135.87,135.82,3.72000588]
[1726015776416,9.05,135.87,135.83,6.098696]
[1726015776617,9.05,135.87,135.84,6.098696]
[1726015776816,9.05,135.87,135.8,1.4064]
[1726015776817,9.05,135.86,135.8,1.4064]
[1726015777117,9.05,135.86,135.81,6.10146147]
[1726015777318,9.05,135.86,135.82,6.10146147]
[1726015777507,9.05,135.86,135.8,1.4064]
[1726015777708,9.05,135.86,135.81,6.10136876]
[1726015777918,9.05,135.86,135.82,6.10136876]
[1726015778111,9.05,135.86,135.8,1.4064]
[1726015778521,9.05,135.86,135.81,6.10242532]
[1726015778713,9.05,135.86,135.8,1.4064]
[1726015778913,9.05,135.86,135.81,6.10241764]
[1726015779112,9.05,135.86,135.8,1.4064]
[1726015779319,9.05,135.86,135.81,6.10237534]
[1726015779521,9.05,135.86,135.8,1.4064]
[1726015779821,9.05,135.86,135.81,6.10266133]
[1726015780024,9.05,135.86,135.8,1.4064]
[1726015780216,9.05,135.86,135.81,6.10229134]
[1726015780519,9.05,135.85,135.8,1.4064]
[1726015783517,9.05,135.86,135.8,10.4564]
[1726015785826,4.0797,135.9,135.71,18.30552774]
[1726015785827,9.05,135.81,135.71,18.30552774]
[1726015786023,4.0797,135.9,135.72,10.09571908]
[1726015786024,9.05,135.79,135.72,10.09571908]
[1726015786236,9.05,135.78,135.72,2.6457]
[1726015786520,6.36041553,135.85,135.72,1.2855]
[1726015786521,9.05,135.76,135.72,1.2855]
[1726015787223,9.05,135.76,135.68,1.3602]
[1726015787422,9.05,135.76,135.69,10.3355]
[1726015787622,9.05,135.76,135.69,1.2855]
[1726015788024,17.50595486,135.84,135.69,10.3355]
[1726015788226,14.16,135.78,135.69,4.97]
[1726015788528,14.16,135.78,135.69,1.2855]
[1726015789031,14.16,135.78,135.7,3.6843]
[1726015789328,1.3061,135.84,135.69,1.2855]
[1726015789714,14.16,135.79,135.69,1.2855]
[1726015790021,3.64913022,135.78,135.69,1.2855]
[1726015790727,3.64913022,135.78,135.7,3.6842]
[1726015791626,3.64913022,135.78,135.69,4.97]
[1726015792219,14.16,135.79,135.69,4.97]
[1726015792423,14.16,135.79,135.69,1.2855]
[1726015792822,14.16,135.79,135.71,3.6841]
[1726015793024,14.16,135.79,135.69,15.4455]
[1726015793421,14.16,135.79,135.72,3.6838]
[1726015793823,14.16,135.79,135.69,15.4455]
[1726015794021,14.16,135.79,135.69,1.2855]
[1726015794232,1.4072,135.78,135.69,1.2855]
[1726015794528,3.70697689,135.77,135.69,1.2855]
[1726015794720,3.70697689,135.77,135.69,4.9701]
[1726015795625,17.86697689,135.77,135.69,1.2855]
[1726015795821,17.86697689,135.77,135.66,1.3468]
[1726015795822,14.16,135.74,135.66,1.3468]
[1726015797430,14.16,135.74,135.66,5.0322]
[1726015797622,14.16,135.72,135.64,3.70292394]
[1726015797822,14.16,135.7,135.59,14.16]
[1726015798024,14.16,135.7,135.61,4.97598752]
[1726015798318,14.16,135.72,135.61,19.13598752]
[1726015798523,14.16,135.72,135.64,3.686]
[1726015799934,14.16,135.72,135.62,2.5979]
[1726015800623,15.4423,135.72,135.62,2.5979]
[1726015800831,15.4423,135.72,135.6,3.67018301]
[1726015800832,14.16,135.68,135.6,3.67018301]
[1726015801126,14.16,135.68,135.59,3.70299199]
[1726015801319,14.16,135.68,135.6,4.189]
[1726015801517,14.16,135.68,135.61,3.6868]
[1726015802729,14.16,135.7,135.6,4.189]
[1726015802926,16.762,135.72,135.6,4.189]
[1726015803128,14.16,135.7,135.6,4.189]
[1726015803328,14.16,135.7,135.62,3.6864]
[1726015804927,16.762,135.72,135.62,3.6864]
[1726015807233,1.3752,135.71,135.62,3.6864]
[1726015807540,14.16,135.7,135.62,3.6864]
[1726015810140,9.06,135.68,135.62,12.7464]
[1726015810539,9.06,135.67,135.62,3.6864]
[1726015813343,9.06,135.67,135.61,12.7466]
[1726015814742,9.06,135.67,135.62,3.6865]
[1726015815454,1.3752,135.71,135.62,3.6865]
[1726015815642,1.3752,135.71,135.62,9.06]
[1726015815842,9.06,135.68,135.62,9.06]
[1726015816147,9.06,135.68,135.63,3.6861]
[1726015817344,1.3752,135.71,135.62,3.6865]
[1726015817345,9.06,135.67,135.62,3.6865]
[1726015817645,9.06,135.67,135.6,4.189]
[1726015817646,9.06,135.66,135.6,13.249]
[1726015817845,9.06,135.66,135.61,3.6867]
[1726015818247,9.06,135.66,135.6,13.249]
[1726015818551,9.06,135.64,135.6,4.189]
[1726015818939,9.06,135.64,135.6,7.8759]
[1726015820555,9.06,135.66,135.61,3.6867]
[1726015823752,9.06,135.66,135.62,3.6865]
[1726015823953,9.06,135.67,135.61,9.06]
[1726015824555,9.06,135.67,135.63,3.6861]
[1726015824752,1.3752,135.71,135.63,9.06]
[1726015824952,9.06,135.69,135.63,9.06]
[1726015825153,9.06,135.69,135.64,3.6858]
[1726015826159,9.06,135.69,135.65,3.6857]
[1726015827856,1.3752,135.71,135.65,3.6857]
[1726015828054,9.06,135.69,135.65,3.6857]
[1726015831860,9.06,135.7,135.66,3.6854]
[1726015832263,9.06,135.7,135.64,9.06]
[1726015833454,9.06,135.7,135.6,4.189]
[1726015833455,9.06,135.69,135.65,3.6856]
[1726015834356,9.06,135.69,135.63,9.06]
[1726015835163,9.06,135.69,135.63,12.7461]
[1726015836361,9.06,135.68,135.62,12.7464]
[1726015840369,2.602,135.72,135.63,3.6862]
[1726015840666,9.06,135.68,135.63,3.6862]
[1726015845565,9.06,135.68,135.62,3.6864]
[1726015846061,9.06,135.68,135.63,3.6862]
[1726015846262,2.602,135.72,135.63,12.7462]
[1726015846474,9.06,135.69,135.63,12.7462]
[1726015861087,9.06,135.69,135.64,3.686]
[1726015861284,11.662,135.72,135.65,9.06]
[1726015862189,2.602,135.72,135.65,12.7456]
[1726015862383,2.602,135.72,135.6,4.189]
[1726015862584,9.06,135.68,135.61,6.11662484]
[1726015862783,9.06,135.68,135.63,3.6861]
[1726015863284,9.06,135.68,135.64,6.11735738]
[1726015863587,9.06,135.7,135.64,12.746]
[1726015864381,9.06,135.7,135.65,6.11627457]
[1726015864684,9.06,135.7,135.64,12.746]
[1726015864885,9.06,135.7,135.65,6.11628173]
[1726015865087,9.06,135.7,135.64,12.746]
[1726015865287,9.06,135.7,135.65,6.11650317]
[1726015865482,9.06,135.7,135.64,12.746]